fUSD/lending_fUSD_20240515
["ID","MTS","AMOUNT","RATE_DAILY","PERIOD"]
[327062870,1715770241981,-262.23,0.0001178,2]
[327062871,1715770241997,-500.0,0.0001178,2]
[327062872,1715770242007,-257.28,0.0001178,2]
[327062873,1715770242016,-500.0,0.0001178,2]
[327062874,1715770242026,-500.0,0.0001178,2]
[327062875,1715770242037,-160.68,0.0001178,2]
[327062876,1715770242046,-326.68044559,0.0001178,2]
[327062877,1715770242056,-500.0,0.0001178,2]
[327062878,1715770242067,-500.0,0.0001178,2]
[327062879,1715770242077,-500.0,0.0001178,2]
[327062880,1715770242086,-500.0,0.0001178,2]
[327062881,1715770242095,-500.0,0.0001178,2]
[327062882,1715770242105,-500.0,0.0001178,2]
[327062883,1715770242114,-460.32,0.0001178,2]
[327062884,1715770242123,-500.0,0.0001178,2]
[327062885,1715770242132,-500.0,0.0001178,2]
[327062886,1715770242141,-283.16866899,0.0001178,2]
[327062887,1715770242151,-500.0,0.0001178,2]
[327062888,1715770242160,-500.0,0.0001178,2]
[327062889,1715770242172,-575.7,0.0001178,2]
[327062890,1715770242181,-386.31,0.0001178,2]
[327062891,1715770242190,-500.0,0.0001178,2]
[327062892,1715770242200,-500.0,0.0001178,2]
[327062893,1715770242209,-500.0,0.0001178,2]
[327062894,1715770242219,-500.0,0.0001178,2]
[327062895,1715770242228,-500.0,0.0001178,2]
[327062896,1715770242237,-500.0,0.0001178,2]
[327062897,1715770242247,-513.7830296,0.0001178,2]
[327062898,1715770242256,-500.0,0.0001178,2]
[327062899,1715770242265,-500.0,0.0001178,2]
[327062900,1715770242275,-500.0,0.0001178,2]
[327062901,1715770242284,-168.77,0.0001178,2]
[327062902,1715770242293,-500.0,0.0001178,2]
[327062903,1715770242302,-500.0,0.0001178,2]
[327062904,1715770242312,-524.55866009,0.0001178,2]
[327062905,1715770242321,-518.29750995,0.0001178,2]
[327062906,1715770242331,-500.0,0.0001178,2]
[327062907,1715770242344,-305.93,0.0001178,2]
[327062908,1715770242355,-509.04068528,0.0001178,2]
[327062909,1715770242365,-512.74852825,0.0001178,2]
[327062910,1715770242376,-500.0,0.0001178,2]
[327062911,1715770242385,-500.0,0.0001178,2]
[327062912,1715770242394,-177.73,0.0001178,2]
[327062913,1715770242404,-500.0,0.0001178,2]
[327062914,1715770242413,-500.0,0.0001178,2]
[327062915,1715770242423,-500.0,0.0001178,2]
[327062916,1715770242433,-500.0,0.0001178,2]
[327062917,1715770242442,-500.0,0.0001178,2]
[327062918,1715770242452,-500.0,0.0001178,2]
[327062919,1715770242461,-500.0,0.0001178,2]
[327062920,1715770242470,-434.96673331,0.0001178,2]
[327062921,1715770242479,-392.5317563,0.0001178,2]
[327062922,1715770242489,-500.0,0.0001178,2]
[327062923,1715770242498,-500.0,0.0001178,2]
[327062924,1715770242508,-500.0,0.0001178,2]
[327062925,1715770242517,-295.45352518,0.0001178,2]
[327062926,1715770242526,-500.0,0.0001178,2]
[327062927,1715770242536,-500.0,0.0001178,2]
[327062928,1715770242545,-500.0,0.0001178,2]
[327062929,1715770242556,-500.0,0.0001178,2]
[327062930,1715770242691,-500.0,0.0001178,2]
[327062931,1715770242722,-500.0,0.0001178,2]
[327062932,1715770242732,-625.95,0.0001178,2]
[327062933,1715770242741,-507.64308095,0.0001178,2]
[327062934,1715770242752,-338.04818475,0.0001178,2]
[327062935,1715770242761,-366.88353949,0.0001178,2]
[327062936,1715770242771,-500.0,0.0001178,2]
[327062937,1715770242780,-500.0,0.0001178,2]
[327062938,1715770242790,-500.0,0.0001178,2]
[327062939,1715770242799,-500.0,0.0001178,2]
[327062940,1715770242808,-500.0,0.0001178,2]
[327062941,1715770242819,-500.0,0.0001178,2]
[327062942,1715770242830,-647.24,0.0001178,2]
[327062943,1715770242841,-1084.73,0.0001178,2]
[327062944,1715770242850,-500.0,0.0001178,2]
[327062946,1715770242860,-500.0,0.0001178,2]
[327062948,1715770242869,-597.51474492,0.0001178,2]
[327062950,1715770242878,-500.0,0.0001178,2]
[327062952,1715770242887,-377.83488539,0.0001178,2]
[327062955,1715770242896,-557.36,0.0001178,2]
[327062957,1715770242905,-500.0,0.0001178,2]
[327062959,1715770242914,-500.0,0.0001178,2]
[327062961,1715770242927,-435.71,0.0001178,2]
[327062963,1715770242936,-626.28980376,0.0001178,2]
[327062965,1715770242944,-500.0,0.0001178,2]
[327062966,1715770242953,-500.0,0.0001178,2]
[327062967,1715770242962,-500.0,0.0001178,2]
[327062968,1715770242971,-243.59,0.0001178,2]
[327062969,1715770242981,-512.64,0.0001178,2]
[327062970,1715770242994,-500.0,0.0001178,2]
[327062971,1715770243003,-500.0,0.0001178,2]
[327062972,1715770243013,-500.0,0.0001178,2]
[327062973,1715770243022,-500.0,0.0001178,2]
[327062974,1715770243032,-500.0,0.0001178,2]
[327062975,1715770243041,-500.0,0.0001178,2]
[327062976,1715770243051,-629.35,0.0001178,2]
[327062977,1715770243060,-500.0,0.0001178,2]
[327062978,1715770243071,-536.95226431,0.0001178,2]
[327062979,1715770243080,-500.0,0.0001178,2]
[327062980,1715770243090,-311.18445338,0.0001178,2]
[327062981,1715770243099,-535.98,0.0001178,2]
[327062982,1715770243108,-237.16559782,0.0001178,2]
[327062983,1715770243117,-500.0,0.0001178,2]
[327062984,1715770243127,-500.0,0.0001178,2]
[327062985,1715770243136,-500.0,0.0001178,2]
[327062986,1715770243145,-500.0,0.0001178,2]
[327062987,1715770243154,-500.0,0.0001178,2]
[327062988,1715770243164,-291.63,0.0001178,2]
[327062989,1715770243177,-500.0,0.0001178,2]
[327062990,1715770243186,-500.0,0.0001178,2]
[327062991,1715770243195,-451.48,0.0001178,2]
[327062992,1715770243204,-500.0,0.0001178,2]
[327062993,1715770243215,-500.0,0.0001178,2]
[327062995,1715770243225,-642.64,0.0001178,2]
[327062996,1715770243236,-500.0,0.0001178,2]
[327062998,1715770243247,-500.0,0.0001178,2]
[327062999,1715770243256,-596.48449226,0.0001178,2]
[327063001,1715770243266,-503.26,0.0001178,2]
[327063003,1715770243275,-607.91428104,0.0001178,2]
[327063004,1715770243284,-1783.24,0.0001178,2]
[327063006,1715770243294,-500.0,0.0001178,2]
[327063007,1715770243303,-500.0,0.0001178,2]
[327063009,1715770243313,-500.0,0.0001178,2]
[327063011,1715770243323,-500.0,0.0001178,2]
[327063012,1715770243332,-500.0,0.0001178,2]
[327063013,1715770243341,-524.7622627,0.0001178,2]
[327063014,1715770243353,-500.0,0.0001178,2]
[327063015,1715770243362,-500.0,0.0001178,2]
[327063016,1715770243372,-152.72,0.0001178,2]
[327063017,1715770243381,-500.0,0.0001178,2]
[327063018,1715770243390,-500.0,0.0001178,2]
[327063019,1715770243400,-500.0,0.0001178,2]
[327063020,1715770243409,-500.0,0.0001178,2]
[327063021,1715770243421,-500.0,0.0001178,2]
[327063022,1715770243429,-500.0,0.0001178,2]
[327063023,1715770243438,-271.49646181,0.0001178,2]
[327063024,1715770243447,-500.0,0.0001178,2]
[327063025,1715770243456,-500.0,0.0001178,2]
[327063026,1715770243465,-500.0,0.0001178,2]
[327063027,1715770243475,-500.0,0.0001178,2]
[327063028,1715770243484,-500.0,0.0001178,2]
[327063029,1715770243493,-500.0,0.0001178,2]
[327063030,1715770243503,-500.0,0.0001178,2]
[327063031,1715770243512,-500.0,0.0001178,2]
[327063032,1715770243522,-522.62025086,0.0001178,2]
[327063033,1715770243531,-500.0,0.0001178,2]
[327063034,1715770243542,-500.0,0.0001178,2]
[327063035,1715770243552,-500.0,0.0001178,2]
[327063036,1715770243562,-500.0,0.0001178,2]
[327063037,1715770243572,-500.0,0.0001178,2]
[327063038,1715770243582,-576.82514444,0.0001178,2]
[327063039,1715770243592,-500.0,0.0001178,2]
[327063040,1715770243603,-500.0,0.0001178,2]
[327063041,1715770243612,-500.0,0.0001178,2]
[327063042,1715770243621,-166.66,0.0001178,2]
[327063043,1715770243632,-500.0,0.0001178,2]
[327063044,1715770243642,-625.31,0.0001178,2]
[327063045,1715770243653,-500.0,0.0001178,2]
[327063046,1715770243662,-393.82,0.0001178,2]
[327063047,1715770243674,-500.0,0.0001178,2]
[327063048,1715770243686,-500.0,0.0001178,2]
[327063049,1715770243696,-500.0,0.0001178,2]
[327063050,1715770243706,-150.0,0.00011791,2]
[327063051,1715770243716,-9135.10084077,0.00011797,2]
[327063052,1715770243732,-18923.33470378,0.00011797,2]
[327063053,1715770243742,-1000.0,0.000118,2]
[327063054,1715770243752,-200.0,0.00011803,2]
[327063055,1715770243761,-1000.0,0.00011803,2]
[327063056,1715770243771,-500.0,0.00011803,2]
[327063057,1715770243780,-150.0,0.0001181,2]
[327063058,1715770243790,-409.53880805,0.00011812,2]
[327063059,1715770243800,-548.53577545,0.00011812,2]
[327063060,1715770243809,-8448.1402143,0.00011812,2]
[327063061,1715770243821,-5784.27140369,0.00011812,2]
[327063062,1715770243833,-334.13536002,0.00011812,2]
[327063063,1715770243845,-1433.45302199,0.00011812,2]
[327063064,1715770243856,-41.12253621,0.00011818,2]
[327063070,1715770243901,-458.87746379,0.00011818,2]
[327063072,1715770243911,-500.0,0.00011818,2]
[327063073,1715770243923,-500.0,0.00011818,2]
[327063074,1715770243933,-500.0,0.00011818,2]
[327063075,1715770243942,-5751.0,0.00011819,2]
[327063076,1715770243951,-2158.0,0.00011819,2]
[327063077,1715770243961,-1399.0,0.00011819,2]
[327063078,1715770243970,-973.0,0.00011819,2]
[327063079,1715770243980,-1225.0,0.00011819,2]
[327063080,1715770243990,-1261.0,0.00011819,2]
[327063081,1715770244003,-543.0,0.00011819,2]
[327063082,1715770244012,-1790.0,0.00011819,2]
[327063083,1715770244022,-422.351,0.00011819,2]
[327063084,1715770244031,-612.419,0.00011819,2]
[327063085,1715770244041,-810.0,0.00011819,2]
[327063086,1715770244051,-165.197,0.00011819,2]
[327063087,1715770244060,-439.0,0.00011819,2]
[327063088,1715770244070,-1647.0,0.00011819,2]
[327063089,1715770244081,-2351.0,0.00011819,2]
[327063090,1715770244091,-155.26,0.00011819,2]
[327063091,1715770244100,-215.159,0.00011819,2]
[327063092,1715770244109,-1149.342,0.00011819,2]
[327063093,1715770244118,-1149.342,0.00011819,2]
[327063094,1715770244127,-448.825,0.00011819,2]
[327063095,1715770244137,-3158.0,0.00011819,2]
[327063096,1715770244146,-219.0,0.00011819,2]
[327063097,1715770244155,-293.679,0.00011819,2]
[327063098,1715770244164,-5907.0,0.00011819,2]
[327063099,1715770244175,-1047.0,0.00011819,2]
[327063100,1715770244184,-8075.33631825,0.00011819,2]
[327063101,1715770244574,-28292.25268175,0.00011819,2]
[327063102,1715770244584,-207.143,0.00011819,2]
[327063103,1715770244594,-1062.256,0.00011819,2]
[327063104,1715770244603,-500.0,0.00011819,2]
[327063105,1715770244613,-500.0,0.00011819,2]
[327063106,1715770244623,-500.0,0.00011819,2]
[327063107,1715770244632,-500.0,0.0001182,2]
[327063108,1715770244641,-482.5,0.0001182,2]
[327063109,1715770244651,-500.0,0.0001182,2]
[327063110,1715770244661,-433.29,0.0001182,2]
[327063111,1715770244670,-500.0,0.0001182,2]
[327063112,1715770244680,-500.0,0.0001182,2]
[327063113,1715770244689,-517.39227678,0.0001182,2]
[327063114,1715770244699,-484.00681849,0.0001182,2]
[327063115,1715770244708,-285.87785061,0.0001182,2]
[327063116,1715770244718,-509.50982843,0.0001182,2]
[327063117,1715770244727,-500.0,0.0001182,2]
[327063118,1715770244737,-500.0,0.0001182,2]
[327063119,1715770244746,-500.0,0.0001182,2]
[327063120,1715770244755,-500.0,0.0001182,2]
[327063121,1715770244764,-500.0,0.0001182,2]
[327063122,1715770244774,-500.0,0.0001182,2]
[327063123,1715770244784,-585.9091084,0.0001182,2]
[327063124,1715770244794,-1084.73,0.0001182,2]
[327063125,1715770244803,-557.36,0.0001182,2]
[327063126,1715770244812,-500.0,0.0001182,2]
[327063127,1715770244822,-500.0,0.0001182,2]
[327063128,1715770244831,-500.0,0.0001182,2]
[327063129,1715770244842,-629.35,0.0001182,2]
[327063130,1715770244851,-305.51653828,0.0001182,2]
[327063131,1715770244861,-500.0,0.0001182,2]
[327063132,1715770244870,-1783.24,0.0001182,2]
[327063133,1715770244879,-500.0,0.0001182,2]
[327063134,1715770244889,-500.0,0.0001182,2]
[327063135,1715770244898,-632.50271526,0.0001182,2]
[327063136,1715770244908,-500.0,0.0001182,2]
[327063137,1715770244917,-33394.0,0.00011821,2]
[327063138,1715770244927,-150.0,0.00011827,2]
[327063139,1715770244936,-500.0,0.00011829,2]
[327063140,1715770244946,-500.0,0.00011829,2]
[327063141,1715770244955,-500.0,0.00011829,2]
[327063142,1715770244964,-500.0,0.00011829,2]
[327063143,1715770244974,-500.0,0.00011829,2]
[327063144,1715770244983,-500.0,0.00011829,2]
[327063145,1715770244999,-500.0,0.00011829,2]
[327063146,1715770245009,-500.0,0.00011829,2]
[327063147,1715770245018,-500.0,0.00011829,2]
[327063148,1715770245028,-500.0,0.00011829,2]
[327063149,1715770245039,-500.0,0.00011829,2]
[327063150,1715770245049,-500.0,0.00011829,2]
[327063151,1715770245059,-207.74,0.00011829,2]
[327063152,1715770245069,-500.0,0.00011829,2]
[327063153,1715770245078,-500.0,0.00011829,2]
[327063154,1715770245089,-500.0,0.00011829,2]
[327063155,1715770245100,-500.0,0.00011829,2]
[327063156,1715770245110,-500.0,0.00011829,2]
[327063157,1715770245120,-500.0,0.00011829,2]
[327063158,1715770245129,-506.04,0.00011829,2]
[327063159,1715770245139,-500.0,0.00011829,2]
[327063160,1715770245148,-500.0,0.00011829,2]
[327063161,1715770245157,-500.0,0.00011829,2]
[327063162,1715770245167,-647.24,0.00011829,2]
[327063163,1715770245178,-500.0,0.00011829,2]
[327063164,1715770245187,-500.0,0.00011829,2]
[327063165,1715770245198,-500.0,0.00011829,2]
[327063166,1715770245207,-500.0,0.00011829,2]
[327063167,1715770245217,-503.26,0.00011829,2]
[327063168,1715770245227,-500.0,0.00011829,2]
[327063169,1715770245237,-290.54,0.00011829,2]
[327063170,1715770245246,-7919.20850743,0.0001183,2]
[327063171,1715770245255,-57763.42003473,0.0001183,2]
[327063172,1715770245269,-33407.40087675,0.0001183,2]
[327063173,1715770245283,-5484.67277565,0.0001183,2]
[327063174,1715770245333,-1589.5,0.0001183,2]
[327063175,1715770245344,-569.44888,0.0001183,2]
[327063176,1715770245355,-17100.0,0.0001183,2]
[327063179,1715770245915,-306.90284395,0.0001183,2]
[327063180,1715770245929,-9556.71327628,0.0001183,2]
[327063181,1715770246014,-9126.41751738,0.0001183,2]
[327063182,1715770246026,-5095.52379526,0.0001183,2]
[327063183,1715770246038,-151.0,0.0001183,2]
[327063184,1715770246047,-151.0,0.0001183,2]
[327063185,1715770246056,-151.0,0.0001183,2]
[327063186,1715770246067,-683.063892,0.0001183,2]
[327063187,1715770246077,-99.35168043,0.0001183,2]
[327063188,1715770246089,-583.71221157,0.0001183,2]
[327063189,1715770246098,-151.0,0.0001183,2]
[327063190,1715770246107,-151.0,0.0001183,2]
[327063191,1715770246117,-151.0,0.0001183,2]
[327063192,1715770246126,-151.0,0.0001183,2]
[327063193,1715770246136,-151.0,0.0001183,2]
[327063194,1715770246145,-151.0,0.0001183,2]
[327063195,1715770246155,-151.0,0.0001183,2]
[327063196,1715770246164,-151.0,0.0001183,2]
[327063197,1715770246175,-151.0,0.0001183,2]
[327063198,1715770246184,-151.0,0.0001183,2]
[327063199,1715770246194,-241.326377,0.0001183,2]
[327063200,1715770246202,-151.0,0.0001183,2]
[327063201,1715770246212,-766.362193,0.0001183,2]
[327063202,1715770246221,-151.0,0.0001183,2]
[327063203,1715770246231,-766.362193,0.0001183,2]
[327063204,1715770246240,-151.0,0.0001183,2]
[327063205,1715770246250,-1285.1474,0.0001183,2]
[327063206,1715770246260,-442.688323,0.0001183,2]
[327063207,1715770246270,-151.0,0.0001183,2]
[327063208,1715770246279,-154.378608,0.0001183,2]
[327063209,1715770246289,-151.0,0.0001183,2]
[327063210,1715770246298,-154.378608,0.0001183,2]
[327063211,1715770246307,-151.0,0.0001183,2]
[327063212,1715770246317,-151.0,0.0001183,2]
[327063213,1715770246329,-151.0,0.0001183,2]
[327063214,1715770246340,-151.0,0.0001183,2]
[327063215,1715770246349,-151.0,0.0001183,2]
[327063216,1715770246359,-151.0,0.0001183,2]
[327063217,1715770246368,-151.0,0.0001183,2]
[327063218,1715770246378,-234.725104,0.0001183,2]
[327063219,1715770246387,-151.0,0.0001183,2]
[327063220,1715770246397,-151.0,0.0001183,2]
[327063221,1715770246406,-151.0,0.0001183,2]
[327063222,1715770246416,-151.0,0.0001183,2]
[327063223,1715770246426,-151.0,0.0001183,2]
[327063224,1715770246435,-151.0,0.0001183,2]
[327063225,1715770246444,-151.0,0.0001183,2]
[327063226,1715770246455,-520.735019,0.0001183,2]
[327063227,1715770246464,-520.735019,0.0001183,2]
[327063228,1715770246474,-151.0,0.0001183,2]
[327063229,1715770246483,-1571.066476,0.0001183,2]
[327063230,1715770246493,-151.0,0.0001183,2]
[327063231,1715770246503,-1571.066476,0.0001183,2]
[327063232,1715770246512,-151.0,0.0001183,2]
[327063233,1715770246521,-151.0,0.0001183,2]
[327063234,1715770246531,-151.0,0.0001183,2]
[327063235,1715770246540,-272.28412,0.0001183,2]
[327063236,1715770246549,-151.0,0.0001183,2]
[327063237,1715770246559,-151.0,0.0001183,2]
[327063238,1715770246568,-151.0,0.0001183,2]
[327063239,1715770246577,-214.93113,0.0001183,2]
[327063240,1715770246587,-155.298145,0.0001183,2]
[327063241,1715770246597,-174.374329,0.0001183,2]
[327063242,1715770246606,-497.487535,0.0001183,2]
[327063243,1715770246616,-174.374329,0.0001183,2]
[327063244,1715770246625,-1000.0,0.00011845,2]
[327063245,1715770246634,-500.0,0.00011851,2]
[327063246,1715770246644,-500.0,0.00011851,2]
[327063247,1715770246653,-17832.77416031,0.00011852,2]
[327063255,1715770246906,-250.0,0.00010866,2]
[327063256,1715770246918,-178.0,0.00011819,2]
[327063257,1715770246930,-497.487535,0.0001183,2]
[327063259,1715770246940,-10225.66138414,0.00011852,2]
[327063261,1715770246950,-500.0,0.00011852,2]
[327063263,1715770246959,-2000.0,0.00011852,2]
[327063265,1715770246968,-200.0,0.00011852,2]
[327063267,1715770246978,-151.0,0.00011852,2]
[327063269,1715770246987,-151.0,0.00011852,2]
[327063271,1715770247002,-151.0,0.00011852,2]
[327063272,1715770247011,-151.0,0.00011852,2]
[327063273,1715770247021,-184.505289,0.00011852,2]
[327063274,1715770247030,-184.505289,0.00011852,2]
[327063275,1715770247042,-151.0,0.00011852,2]
[327063276,1715770247052,-156.072372,0.00011852,2]
[327063277,1715770247061,-151.0,0.00011852,2]
[327063278,1715770247072,-156.072372,0.00011852,2]
[327063279,1715770247081,-3000.0,0.00011852,2]
[327063280,1715770247091,-500.0,0.00011852,2]
[327063281,1715770247101,-500.0,0.00011852,2]
[327063282,1715770247111,-150.75,0.00011862,2]
[327063283,1715770247120,-150.0,0.00011863,2]
[327063285,1715770247130,-150.0,0.00011867,2]
[327063286,1715770247140,-2528.0928301,0.00011885,2]
[327063287,1715770247149,-500.0,0.00011888,2]
[327063288,1715770247159,-425.80732631,0.00011888,2]
[327063289,1715770247207,-74.19267369,0.00011888,2]
[327063290,1715770247216,-500.0,0.00011888,2]
[327063291,1715770247226,-500.0,0.00011888,2]
[327063292,1715770247235,-500.0,0.00011889,2]
[327063293,1715770247245,-500.0,0.00011889,2]
[327063294,1715770247255,-500.0,0.00011889,2]
[327063295,1715770247264,-500.0,0.00011889,2]
[327063296,1715770247273,-500.0,0.00011889,2]
[327063297,1715770247283,-500.0,0.00011889,2]
[327063298,1715770247292,-500.0,0.00011889,2]
[327063299,1715770247301,-500.0,0.00011889,2]
[327063300,1715770247311,-500.0,0.00011889,2]
[327063301,1715770247320,-500.0,0.00011889,2]
[327063302,1715770247330,-500.0,0.00011889,2]
[327063303,1715770247339,-500.0,0.00011889,2]
[327063304,1715770247349,-500.0,0.00011889,2]
[327063305,1715770247358,-387.62747711,0.00011889,2]
[327063306,1715770247370,-547.84176427,0.00011889,2]
[327063313,1715770598488,7225.97918873,8.862e-05,5]
[327063314,1715770745047,959.53994876,0.000235,120]
[327063315,1715770745078,4937.56681093,0.000235,120]
[327063329,1715771432077,-782.29340259,8.604e-05,2]
[327063331,1715771432087,-200.84001828,8.605e-05,2]
[327063332,1715771432097,-194.91493898,8.606e-05,2]
[327063333,1715771432106,-155.0,8.606e-05,2]
[327063334,1715771432115,-1247.74710897,8.607e-05,2]
[327063335,1715771432125,-282.50079644,8.626e-05,2]
[327063336,1715771432303,-537.37856684,8.604e-05,2]
[327063338,1715771432313,-44.43920356,8.626e-05,2]
[327063340,1715771432323,-165.15,0.00010411,2]
[327063342,1715771432335,-250.0,0.00010447,2]
[327063344,1715771432345,-172.47,0.00010449,2]
[327063346,1715771432354,-600.0,0.00010461,2]
[327063348,1715771432363,-928.04274712,0.00010479,2]
[327063350,1715771432376,-380.04295626,0.00010479,2]
[327063352,1715771432387,-998.24080888,0.00010479,2]
[327063362,1715771438895,-4807.01348774,0.00010479,2]
[327063363,1715771438905,-801.84,0.00010496,2]
[327063364,1715771438914,-390.5,0.00010608,2]
[327063365,1715771438924,-176.38,0.0001062,2]
[327063366,1715771438933,-400.0,0.0001074,2]
[327063367,1715771438943,-2277.76,0.00010838,2]
[327063368,1715771438951,-167.75,0.0001084,2]
[327063369,1715771438960,-326.94,0.0001089,2]
[327063370,1715771438969,-1206.27,0.00010959,2]
[327063371,1715771438979,-200.0,0.00011,2]
[327063372,1715771438988,-876.71,0.00011041,2]
[327063373,1715771438997,-830.4,0.00011041,2]
[327063374,1715771439006,-710.05,0.00011178,2]
[327063375,1715771439016,-523.61,0.00011178,2]
[327063376,1715771439025,-152.78,0.00011178,2]
[327063377,1715771439034,-615.03,0.00011178,2]
[327063378,1715771439043,-150.0,0.00011178,2]
[327063379,1715771439053,-150.0,0.00011178,2]
[327063380,1715771439062,-164.79,0.00011178,2]
[327063381,1715771439071,-150.0,0.00011178,2]
[327063382,1715771439080,-685.11,0.00011178,2]
[327063383,1715771439089,-150.0,0.00011178,2]
[327063395,1715771439312,-150.0,0.00011178,2]
[327063396,1715771439322,-5268.33772147,0.00011332,2]
[327063397,1715771439334,-680.22879089,0.00011338,2]
[327063398,1715771439348,-919.89601438,0.00011338,2]
[327063399,1715771439358,-304.7,0.00011671,2]
[327063400,1715771439367,-210.507,0.00011691,2]
[327063401,1715771439378,-913.211,0.00011691,2]
[327063402,1715771439387,-256.756,0.00011691,2]
[327063403,1715771439398,-1000.0,0.000117,2]
[327063404,1715771439408,-2500.0,0.000117,2]
[327063405,1715771439418,-496.9288,0.00011712,2]
[327063406,1715771439428,-155.19873689,0.00011719,2]
[327063407,1715771439438,-4038.121,0.0001172,2]
[327063408,1715771439448,-600.0,0.00011769,2]
[327063409,1715771439458,-352.24328258,0.0001177,2]
[327063410,1715771439468,-3072.35272229,0.00011777,2]
[327063411,1715771439477,-1603.33188358,0.00011779,2]
[327063412,1715771439487,-500.0,0.0001178,2]
[327063413,1715771439496,-300.56774659,0.0001178,2]
[327063414,1715771439506,-500.0,0.0001178,2]
[327063415,1715771439515,-503.95146855,0.0001178,2]
[327063416,1715771439524,-500.0,0.0001178,2]
[327063417,1715771439534,-507.15892591,0.0001178,2]
[327063418,1715771439543,-412.99267022,0.0001178,2]
[327063419,1715771439552,-500.0,0.0001178,2]
[327063420,1715771439562,-500.0,0.0001178,2]
[327063421,1715771439572,-500.0,0.0001178,2]
[327063422,1715771439582,-500.0,0.0001178,2]
[327063423,1715771439591,-372.58664266,0.0001178,2]
[327063424,1715771439600,-668.5,0.0001178,2]
[327063425,1715771439610,-500.0,0.0001178,2]
[327063426,1715771439619,-317.946,0.0001178,2]
[327063427,1715771439628,-603.9624618,0.0001178,2]
[327063428,1715771439638,-152.11124838,0.0001178,2]
[327063429,1715771439648,-500.0,0.0001178,2]
[327063430,1715771439658,-500.0,0.0001178,2]
[327063431,1715771439667,-500.0,0.0001178,2]
[327063432,1715771439678,-500.0,0.0001178,2]
[327063433,1715771439687,-500.0,0.0001178,2]
[327063434,1715771439697,-500.0,0.0001178,2]
[327063435,1715771439706,-500.0,0.0001178,2]
[327063436,1715771439716,-589.82772126,0.0001178,2]
[327063437,1715771439725,-1213.14,0.0001178,2]
[327063438,1715771439735,-500.0,0.0001178,2]
[327063439,1715771439744,-500.0,0.0001178,2]
[327063440,1715771439752,-294.90044969,0.0001178,2]
[327063441,1715771439762,-500.0,0.0001178,2]
[327063442,1715771439771,-515.06525624,0.0001178,2]
[327063443,1715771439780,-500.0,0.0001178,2]
[327063444,1715771439789,-520.54887771,0.0001178,2]
[327063445,1715771439799,-500.0,0.0001178,2]
[327063446,1715771439808,-621.73748727,0.0001178,2]
[327063447,1715771439818,-500.0,0.0001178,2]
[327063448,1715771439827,-500.0,0.0001178,2]
[327063449,1715771439836,-500.0,0.0001178,2]
[327063450,1715771439846,-564.13,0.0001178,2]
[327063451,1715771439856,-500.0,0.0001178,2]
[327063452,1715771439865,-500.0,0.0001178,2]
[327063453,1715771439875,-500.0,0.0001178,2]
[327063454,1715771439884,-500.0,0.0001178,2]
[327063455,1715771439894,-500.0,0.0001178,2]
[327063456,1715771439903,-200.0,0.00011785,2]
[327063457,1715771439913,-154.11,0.0001179,2]
[327063458,1715771439922,-150.9656,0.0001179,2]